[Event "Polugaevsky Memorial 2018"]
[Site "Samara"]
[Date "2018.07.10"]
[Round "1"]
[White "Shaposhnikov, Evgeny"]
[Black "Tyurin, Artem"]
[Result "1-0"]
[ECO "A05"]
[WhiteElo "2572"]
[BlackElo "2021"]
[Annotator "ChessBase"]
[PlyCount "99"]
[EventDate "2018.07.10"]
[EventType "swiss"]
[EventCountry "RUS"]
[SourceTitle "playchess.com"]
[Source "ChessBase"]
[SourceQuality "1"]
[TimeControl "40/5400+30:1800+30"]

1. Nf3 {[%emt 0:00:00]} Nf6 {[%emt 0:00:00]} 2. c4 {[%emt 0:00:00]} g6 {[%emt 0:00:00]} 3. d4 {[%emt 0:00:00]} Bg7 {[%emt 0:00:07]} 4. e3 {[%emt 0:00:04]} O-O {[%emt 0:00:11]} 5. Be2 {[%emt 0:00:08]} d6 {[%emt 0:03:45]} 6. Nc3 {[%emt 0:00:13]} Nbd7 {[%emt 0:01:38]} 7. b3 {[%emt 0:00:00]} c5 {[%emt 0:01:30]} 8. O-O {[%emt 0:00:05]} a6 {[%emt 0:02:25]} 9. Bb2 {[%emt 0:00:19]} Qc7 {[%emt 0:00:55]} 10. Rc1 {[%emt 0:00:30]} b6 {[%emt 0:01:59]} 11. h3 {[%emt 0:01:13]} Bb7 {[%emt 0:01:54]} 12. Qc2 {[%emt 0:01:07]} Rac8 {[%emt 0:04:14]} 13. d5 {[%emt 0:00:16]} Rfd8 {[%emt 0:02:35]} 14. e4 {[%emt 0:00:44]} Nh5 {[%emt 0:02:03]} 15. Rfe1 {[%emt 0:02:32]} Nf4 {[%emt 0:04:32]} 16. Bf1 {[%emt 0:00:16]} Ne5 {[%emt 0:00:40]} 17. Nd2 {[%emt 0:03:44]} Qd7 {[%emt 0:02:15]} 18. Na4 {[%emt 0:03:15]} Rb8 {[%emt 0:11:12]} 19. Nxb6 {[%emt 0:00:59]} Qc7 {[%emt 0:00:04]} 20. Na4 {[%emt 0:00:21]} Bc8 {[%emt 0:00:27]} 21. Re3 {[%emt 0:08:12]} Bh6 {[%emt 0:02:24]} 22. Rd1 {[%emt 0:05:41]} f6 {[%emt 0:03:55]} 23. Nc3 {[%emt 0:03:50]} Kh8 {[%emt 0:05:23]} 24. Ne2 {[%emt 0:05:50]} g5 {[%emt 0:07:47]} 25. Nf3 {[%emt 0:05:59]} g4 {[%emt 0:05:28]} 26. Nxe5 {[%emt 0:00:22]} fxe5 {[%emt 0:00:45]} 27. Nxf4 {[%emt 0:01:18]} Bxf4 {[%emt 0:00:11]} 28. Red3 {[%emt 0:00:31]} gxh3 {[%emt 0:03:57]} 29. g3 {[%emt 0:00:06]} Bg5 {[%emt 0:03:37]} 30. Kh2 {[%emt 0:02:40]} Rg8 {[%emt 0:03:03]} 31. Bxh3 {[%emt 0:03:44]} Rg6 {[%emt 0:05:06]} 32. Rh1 {[%emt 0:03:45]} Bxh3 33. Kxh3 {[%emt 0:00:07]} Rh6+ {[%emt 0:04:37]} 34. Kg2 {[%emt 0:00:09]} Rxh1 {[%emt 0:00:04]} 35. Kxh1 {[%emt 0:00:08]} Qd7 {[%emt 0:00:22]} 36. Kg2 {[%emt 0:00:22]} Rf8 {[%emt 0:02:51]} 37. Qe2 {[%emt 0:03:32]} Rf6 {[%emt 0:02:45]} 38. Qh5 {[%emt 0:01:02]} Rg6 {[%emt 0:06:58]} 39. Rf3 {[%emt 0:00:00]} Kg7 {[%emt 0:00:00]} 40. Rf5 {[%emt 0:00:00]} Bf6 {[%emt 0:00:00]} 41. Bc1 {[%emt 0:01:20]} h6 {[%emt 0:01:32]} 42. Qh3 {[%emt 0:00:24]} Qe8 {[%emt 0:01:31]} 43. Rh5 {[%emt 0:00:18]} Qh8 {[%emt 0:00:05]} 44. Bd2 {[%emt 0:00:32]} Bg5 {[%emt 0:00:49]} 45. Bxg5 {[%emt 0:00:44]} Rxg5 {[%emt 0:00:03]} 46. Rxg5+ {[%emt 0:00:14]} hxg5 {[%emt 0:00:05]} 47. Qxh8+ {[%emt 0:00:15]} Kxh8 {[%emt 0:00:02]} 48. Kf3 {[%emt 0:00:07]} Kg7 {[%emt 0:00:03]} 49. Kg4 {[%emt 0:00:08]} Kg6 {[%emt 0:01:57]} 50. f3 {[%emt 0:00:09]} 1-0

[Event "Polugaevsky Memorial 2018"]
[Site "Samara"]
[Date "2018.07.10"]
[Round "1"]
[White "Drygalov, Andrey"]
[Black "Salomatin, Anton"]
[Result "1-0"]
[ECO "B52"]
[WhiteElo "2439"]
[BlackElo "1946"]
[Annotator "NA"]
[PlyCount "117"]
[EventDate "2018.07.10"]
[EventType "swiss"]
[EventCountry "RUS"]
[SourceTitle "playchess.com"]
[Source "ChessBase"]
[SourceQuality "1"]
[TimeControl "40/5400+30:1800+30"]

1. e4 {[%emt 0:00:00]} c5 {[%emt 0:00:00]} 2. Nf3 {[%emt 0:00:00]} d6 {[%emt 0:00:03]} 3. Bb5+ {[%emt 0:00:00]} Bd7 {[%emt 0:00:36]} 4. Bxd7+ {[%emt 0:00:25]} Qxd7 {[%emt 0:00:31]} 5. c4 {[%emt 0:00:10]} Nc6 {[%emt 0:04:30]} 6. Nc3 {[%emt 0:00:07]} g6 {[%emt 0:00:44]} 7. d4 {[%emt 0:00:13]} cxd4 {[%emt 0:00:51]} 8. Nxd4 {[%emt 0:00:04]} Bg7 {[%emt 0:00:15]} 9. Be3 {[%emt 0:00:40]} Nf6 {[%emt 0:01:25]} 10. f3 {[%emt 0:00:44] LiveBook: 345 Games} Ne5 {[%emt 0:01:54] B52: Sicilian: Moscow Variation with 3...Bd7} (10... O-O 11. O-O a6 12. Na4 Rab8 13. Nxc6 Qxc6 14. Nb6 Nd7 15. Nxd7 Qxd7 16. Rf2 b5 17. c5 Qa7 18. Rc1 dxc5 19. Bxc5 Qc7 {1-0 (50) Caruana,F (2807)-Kasparov,G (2812) Saint Louis 2017}) 11. b3 {[%emt 0:01:48]} O-O {[%emt 0:07:16]} 12. O-O {[%emt 0:01:04]} Rfd8 {[%emt 0:08:08]} 13. Qd2 {[%emt 0:00:29]} Nc6 {[%emt 0:00:52]} 14. Rfd1 $146 {[%emt 0:02:18]} ({Predecessor:} 14. Rad1 Ne8 15. Nd5 Nxd4 16. Bxd4 Bxd4+ 17. Qxd4 e5 18. Qe3 Kg7 19. f4 exf4 {1-0 (53) Zigura,O (2335)-Ricroque,J (1870) Issy les Moulineaux 1996}) 14... h5 {[%emt 0:03:43]} 15. Qf2 {[%emt 0:03:44]} b6 {[%emt 0:10:29]} 16. Rac1 {[%emt 0:00:52]} Ne5 {[%emt 0:01:33]} 17. h3 {[%emt 0:03:07]} Qb7 {[%emt 0:00:46]} 18. Qh4 {[%emt 0:10:47]} Rac8 {[%emt 0:20:51]} 19. Nd5 {[%emt 0:10:00]} (19. f4 $16 Ned7 20. f5) 19... Nxd5 {[%emt 0:04:55]} (19... Re8 $142) 20. exd5 {[%emt 0:00:47]} ({Resist} 20. cxd5 $6 Rxc1 21. Bxc1 (21. Rxc1 Rc8 $14) 21... Re8 $14) 20... Bf6 {[%emt 0:06:22]} 21. Qf2 {[%emt 0:01:10]} Kh7 {[%emt 0:01:08]} 22. f4 {[%emt 0:01:12]} Nd7 {[%emt 0:00:23]} 23. f5 {[%emt 0:02:32]} Rg8 {[%emt 0:00:33]} 24. fxg6+ {[%emt 0:02:38]} Rxg6 {[%emt 0:01:07]} 25. Qf5 {[%emt 0:00:09]} Rh8 $16 {[%emt 0:01:17]} 26. Rc2 {[%emt 0:13:42]} Kg7 {[%emt 0:05:09]} 27. Rf2 {[%emt 0:02:28]} Ne5 {[%emt 0:00:18]} 28. Bf4 {[%emt 0:03:06]} h4 {[%emt 0:04:01]} 29. Bxe5 {[%emt 0:04:44]} dxe5 {[%emt 0:00:24]} 30. Nf3 {[%emt 0:02:30]} Qc7 {[%emt 0:00:42]} 31. Re1 {[%emt 0:02:13]} Rhh6 {[%emt 0:07:53]} 32. Re4 {[%emt 0:03:12]} Rg3 {[%emt 0:00:41]} 33. Nxe5 {[%emt 0:03:18]} Rg5 {[%emt 0:00:45]} 34. Rg4 {[%emt 0:00:14]} Rhg6 {[%emt 0:00:01]} 35. d6 {[%emt 0:12:11]} Qxd6 {[%emt 0:02:47]} 36. Nxg6 {[%emt 0:01:02]} Rxf5 {[%emt 0:02:05]} 37. Nxe7+ {[%emt 0:00:11]} Kf8 {[%emt 0:01:33]} 38. Nxf5 {[%emt 0:00:11]} Qc5 {[%emt 0:00:36]} 39. Rgf4 {[%emt 0:03:13]} Bg5 {[%emt 0:00:53]} 40. Rd4 {[%emt 0:00:00]} f6 {[%emt 0:00:00]} 41. Rd8+ {[%emt 0:05:09]} Kf7 {[%emt 0:00:46]} 42. Rd7+ {[%emt 0:00:13]} Kf8 {[%emt 0:01:34]} 43. Rd5 {[%emt 0:02:32]} Qa3 {[%emt 0:01:59]} 44. Rd1 {[%emt 0:00:29]} Qc5 {[%emt 0:01:11]} 45. Kf1 {[%emt 0:00:35]} Qe5 {[%emt 0:00:19]} 46. Kg1 {[%emt 0:11:13]} Qc5 {[%emt 0:06:03]} 47. Rdf1 {[%emt 0:01:00]} a5 {[%emt 0:01:18]} 48. a4 {[%emt 0:03:43]} Qe5 {[%emt 0:01:56]} 49. Kh1 {[%emt 0:01:19]} Qc3 {[%emt 0:01:40]} 50. Rf3 {[%emt 0:02:50]} Qd2 {[%emt 0:00:05]} 51. g3 {[%emt 0:02:44]} hxg3 {[%emt 0:01:09]} 52. Nxg3 {[%emt 0:00:05]} Qd4 {[%emt 0:03:23]} 53. Ne2 {[%emt 0:01:22]} Qe4 {[%emt 0:04:11]} 54. Nc3 {[%emt 0:00:09]} Qc2 {[%emt 0:00:20]} 55. Nd5 {[%emt 0:00:11]} Qe4 {[%emt 0:01:14]} 56. Nxb6 {[%emt 0:02:13]} Be3 {[%emt 0:00:57]} 57. Nd7+ {[%emt 0:00:20]} Kg7 {[%emt 0:02:37]} 58. Nxf6 {[%emt 0:00:07]} Qc6 {[%emt 0:01:28]} 59. Nd5 {[%emt 0:00:11]} 1-0

[Event "Polugaevsky Memorial 2018"]
[Site "Samara"]
[Date "2018.07.10"]
[Round "1"]
[White "Lazhevskaya, Zhanni"]
[Black "Fedorov, Alexey A"]
[Result "0-1"]
[ECO "B43"]
[WhiteElo "2029"]
[BlackElo "1399"]
[Annotator "NA"]
[PlyCount "90"]
[EventDate "2018.07.10"]
[EventType "swiss"]
[EventCountry "RUS"]
[SourceTitle "playchess.com"]
[Source "ChessBase"]
[SourceQuality "1"]
[TimeControl "40/5400+30:1800+30"]

1. e4 {[%emt 0:00:00]} c5 {[%emt 0:00:00]} 2. Nf3 {[%emt 0:00:00]} e6 {[%emt 0:00:10]} 3. d4 {[%emt 0:00:00]} cxd4 {[%emt 0:00:05]} 4. Nxd4 {[%emt 0:00:00]} a6 {[%emt 0:00:07]} 5. Nc3 {[%emt 0:00:09]} Qc7 {[%emt 0:00:34]} 6. g3 {[%emt 0:01:52]} Nf6 {[%emt 0:03:26]} 7. Bg2 {[%emt 0:01:14]} Nc6 {[%emt 0:00:05]} 8. O-O {[%emt 0:04:19]} h5 {[%emt 0:00:27] B47: Sicilian: Taimanov: 5 Nc3 Qc7 6 f4, 6 g3 and 6 Be2} 9. Nxc6 {[%emt 0:10:06] LiveBook: 22 Games} dxc6 {[%emt 0:01:24]} 10. Bg5 {[%emt 0:07:25]} Be7 {[%emt 0:07:26]} 11. Qd2 $146 {[%emt 0:04:17]} ({Predecessor:} 11. Qe2 e5 12. a4 a5 13. Kh1 b6 14. Nd1 Ba6 15. c4 Ng4 16. Bxe7 Qxe7 {½-½ (44) Gu,X (2332)-Bruzon Batista,L (2661) Paramaribo 2017}) 11... e5 {[%emt 0:00:21]} 12. Rad1 {[%emt 0:06:52]} Bg4 {[%emt 0:01:13]} 13. f3 {[%emt 0:00:46]} Be6 {[%emt 0:00:31]} 14. Qf2 {[%emt 0:06:14]} Ng4 {[%emt 0:09:28]} 15. Qd2 {[%emt 0:08:59]} f6 {[%emt 0:09:36]} 16. fxg4 {[%emt 0:04:54]} fxg5 {[%emt 0:00:12]} 17. gxh5 {[%emt 0:01:37]} Rxh5 {[%emt 0:09:17]} 18. Qf2 $17 {[%emt 0:01:11]} g4 {[%emt 0:12:59]} 19. Na4 {[%emt 0:10:34]} Qa5 {[%emt 0:00:48]} 20. b3 {[%emt 0:00:09]} Rh8 {[%emt 0:02:05]} 21. Kh1 {[%emt 0:06:27]} Rf8 {[%emt 0:08:33]} 22. Qe3 {[%emt 0:03:51]} Rd8 {[%emt 0:10:08]} 23. Rd3 {[%emt 0:13:39]} Rxd3 {[%emt 0:02:52]} 24. Qxd3 {[%emt 0:00:12]} b5 {[%emt 0:02:27]} 25. Qc3 {[%emt 0:01:02]} Qxc3 {[%emt 0:00:34]} 26. Nxc3 {[%emt 0:00:04]} Rh8 {[%emt 0:01:26]} 27. Rd1 {[%emt 0:02:53]} Bc5 {[%emt 0:00:38]} 28. Bf1 {[%emt 0:02:52]} Ke7 {[%emt 0:04:25]} 29. Bd3 {[%emt 0:00:47]} a5 {[%emt 0:01:30]} 30. a4 {[%emt 0:01:43]} Bd4 {[%emt 0:01:01]} 31. Ne2 {[%emt 0:00:38]} bxa4 {[%emt 0:00:39]} 32. Nxd4 {[%emt 0:00:25]} exd4 {[%emt 0:00:07]} 33. bxa4 {[%emt 0:00:03]} Rb8 {[%emt 0:01:06]} 34. Be2 {[%emt 0:00:21]} Rb4 {[%emt 0:00:23]} 35. Ra1 {[%emt 0:01:13]} Rb2 {[%emt 0:01:20]} 36. Bd1 {[%emt 0:00:32]} Kd6 {[%emt 0:01:39]} 37. Kg1 {[%emt 0:00:24]} Ke5 {[%emt 0:00:54]} 38. Kf2 {[%emt 0:00:31]} c5 {[%emt 0:03:07]} 39. Ke2 {[%emt 0:00:22]} Kxe4 {[%emt 0:00:40]} 40. Kd2 {[%emt 0:00:00]} c4 {[%emt 0:00:00]} 41. Be2 {[%emt 0:03:04]} d3 {[%emt 0:02:06]} 42. Bxd3+ {[%emt 0:00:04]} cxd3 {[%emt 0:00:14]} 43. Re1+ {[%emt 0:00:08]} Kd5 {[%emt 0:00:06]} 44. Kxd3 {[%emt 0:00:24]} Bf5+ {[%emt 0:00:04]} 45. Ke3 {[%emt 0:00:11]} Bxc2 {[%emt 0:00:48] Kd4+ Ke5+} 0-1

[Event "Polugaevsky Memorial 2018"]
[Site "Samara"]
[Date "2018.07.10"]
[Round "1"]
[White "Mochalin, Faddey"]
[Black "Frolyanov, Dmitry"]
[Result "0-1"]
[ECO "A20"]
[WhiteElo "2012"]
[BlackElo "2540"]
[Annotator "ChessBase"]
[PlyCount "105"]
[EventDate "2018.07.10"]
[EventType "swiss"]
[EventCountry "RUS"]
[SourceTitle "playchess.com"]
[Source "ChessBase"]
[SourceQuality "1"]
[TimeControl "40/5400+30:1800+30"]

1. c4 {[%emt 0:00:00]} e5 {[%emt 0:00:09]} 2. g3 {[%emt 0:00:00]} Nf6 {[%emt 0:00:13]} 3. Bg2 {[%emt 0:00:00]} d5 {[%emt 0:00:07]} 4. cxd5 {[%emt 0:00:00]} Nxd5 {[%emt 0:00:05]} 5. Nf3 {[%emt 0:00:00]} Nc6 {[%emt 0:00:25]} 6. O-O {[%emt 0:00:08]} Nb6 {[%emt 0:01:14]} 7. Nc3 {[%emt 0:00:13]} Be7 {[%emt 0:00:33]} 8. d4 {[%emt 0:00:25]} exd4 {[%emt 0:03:05]} 9. Nb5 {[%emt 0:00:11]} Bf6 {[%emt 0:06:45]} 10. Bf4 {[%emt 0:00:57]} Nd5 {[%emt 0:03:21]} 11. Bg5 {[%emt 0:00:26]} Bxg5 {[%emt 0:11:54]} 12. Nxg5 {[%emt 0:00:13]} Nde7 {[%emt 0:00:52]} 13. Qa4 {[%emt 0:00:35]} O-O {[%emt 0:02:18]} 14. Rfd1 {[%emt 0:00:43]} Nf5 {[%emt 0:02:26]} 15. Nf3 {[%emt 0:00:27]} Qe7 {[%emt 0:05:36]} 16. Qa3 {[%emt 0:00:29]} Qxa3 {[%emt 0:08:18]} 17. bxa3 {[%emt 0:00:14]} Rb8 {[%emt 0:04:48]} 18. Nxc7 {[%emt 0:11:17]} Rd8 {[%emt 0:00:55]} 19. Rac1 {[%emt 0:19:12]} Bd7 {[%emt 0:03:27]} 20. Nd2 {[%emt 0:08:56]} Rbc8 {[%emt 0:04:25]} 21. Nd5 {[%emt 0:04:28]} Be6 {[%emt 0:00:23]} 22. Nb4 {[%emt 0:05:27]} Na5 {[%emt 0:04:02]} 23. Kf1 {[%emt 0:18:58]} Nd6 {[%emt 0:06:58]} 24. Ke1 {[%emt 0:04:21]} Nb5 {[%emt 0:01:33]} 25. Nb1 {[%emt 0:03:29]} Re8 {[%emt 0:08:01]} 26. Bf3 {[%emt 0:01:54]} Bf5 {[%emt 0:06:57]} 27. a4 {[%emt 0:06:16]} Nd6 {[%emt 0:00:23]} 28. Na3 {[%emt 0:02:30]} Rxc1 {[%emt 0:02:30]} 29. Rxc1 {[%emt 0:00:08]} d3 {[%emt 0:04:38]} 30. Rd1 {[%emt 0:06:06]} Be4 {[%emt 0:02:54]} 31. Bxe4 {[%emt 0:02:08]} Rxe4 {[%emt 0:00:05]} 32. Rxd3 {[%emt 0:05:14]} Rxb4 {[%emt 0:00:15]} 33. Rxd6 {[%emt 0:00:17]} g6 {[%emt 0:00:09]} 34. Rd3 {[%emt 0:00:44]} Rxa4 {[%emt 0:00:12]} 35. Kd1 {[%emt 0:00:15]} a6 {[%emt 0:01:25]} 36. Kc2 {[%emt 0:00:25]} b5 {[%emt 0:00:50]} 37. Kb2 {[%emt 0:00:48]} Kg7 {[%emt 0:00:13]} 38. h4 {[%emt 0:00:27]} Rb4+ {[%emt 0:03:00]} 39. Kc3 {[%emt 0:00:33]} Re4 {[%emt 0:00:16]} 40. Kd2 {[%emt 0:00:00]} Ra4 {[%emt 0:00:00]} 41. Kc1 {[%emt 0:13:50]} Nc6 {[%emt 0:01:22]} 42. Kb2 {[%emt 0:10:29]} Ne5 {[%emt 0:00:26]} 43. Rd5 {[%emt 0:04:11]} Ng4 {[%emt 0:00:13]} 44. f3 {[%emt 0:00:44]} Ne3 {[%emt 0:00:19]} 45. Rc5 {[%emt 0:01:43]} Nf5 {[%emt 0:00:47]} 46. g4 {[%emt 0:00:57]} Nxh4 {[%emt 0:00:14]} 47. Kb3 {[%emt 0:01:43]} Ng2 {[%emt 0:00:32]} 48. Nc2 {[%emt 0:00:30]} Nf4 {[%emt 0:00:17]} 49. e4 {[%emt 0:00:51]} Nd3 {[%emt 0:00:24]} 50. Rc6 {[%emt 0:00:37]} Nc1+ {[%emt 0:00:48]} 51. Kb2 {[%emt 0:00:06]} Nxa2 {[%emt 0:00:47]} 52. Rd6 {[%emt 0:00:52]} Nb4 {[%emt 0:01:32]} 53. Ne1 {[%emt 0:01:03]} 0-1

[Event "Polugaevsky Memorial 2018"]
[Site "Samara"]
[Date "2018.07.10"]
[Round "1"]
[White "Maneluk, Daniil"]
[Black "Iljushin, Alexei"]
[Result "1/2-1/2"]
[ECO "B13"]
[WhiteElo "2000"]
[BlackElo "2514"]
[Annotator "RC"]
[PlyCount "80"]
[EventDate "2018.07.10"]
[EventType "swiss"]
[EventCountry "RUS"]
[SourceTitle "playchess.com"]
[Source "ChessBase"]
[SourceQuality "1"]
[TimeControl "40/5400+30:1800+30"]

1. e4 {[%emt 0:00:00]} c6 {[%emt 0:00:00]} 2. d4 {[%emt 0:00:00]} d5 {[%emt 0:00:00]} 3. exd5 {[%emt 0:00:00]} cxd5 {[%emt 0:00:00]} 4. Bd3 {[%emt 0:00:00]} Nc6 {[%emt 0:00:00]} 5. c3 {[%emt 0:00:00]} g6 {[%emt 0:00:20]} 6. Bf4 {[%emt 0:00:11]} Bf5 {[%emt 0:00:18]} 7. Na3 {[%emt 0:10:33]} e6 {[%emt 0:05:42]} 8. Nc2 {[%emt 0:01:01]} Bd6 {[%emt 0:01:24]} 9. Bxd6 {[%emt 0:01:02]} Qxd6 {[%emt 0:00:02]} 10. Nf3 {[%emt 0:00:13]} Nf6 {[%emt 0:01:28]} 11. O-O {[%emt 0:00:22]} h5 {[%emt 0:02:53]} 12. Re1 {[%emt 0:01:09]} Be4 {[%emt 0:14:51]} 13. Ne5 {[%emt 0:05:00]} Nxe5 {[%emt 0:26:48]} 14. dxe5 {[%emt 0:00:54]} Qxe5 {[%emt 0:00:08]} 15. f3 {[%emt 0:01:55]} Ng4 {[%emt 0:00:59]} 16. fxg4 {[%emt 0:05:09]} hxg4 {[%emt 0:01:52]} 17. h3 {[%emt 0:07:44]} gxh3 {[%emt 0:15:58]} 18. Bxe4 {[%emt 0:00:12]} dxe4 {[%emt 0:00:12]} 19. Qd4 {[%emt 0:01:11]} Qxd4+ {[%emt 0:06:35]} 20. Nxd4 {[%emt 0:00:08]} hxg2 {[%emt 0:00:14]} 21. Kxg2 {[%emt 0:00:12]} Rh4 {[%emt 0:00:37]} 22. Kg3 {[%emt 0:01:09]} g5 {[%emt 0:01:27]} 23. Rh1 {[%emt 0:00:59]} Rxh1 {[%emt 0:04:10]} 24. Rxh1 {[%emt 0:00:08]} Ke7 {[%emt 0:00:17]} 25. Kg4 {[%emt 0:01:21]} Rg8 {[%emt 0:00:56]} 26. Re1 {[%emt 0:00:25]} f5+ {[%emt 0:03:22]} 27. Nxf5+ {[%emt 0:00:13]} exf5+ {[%emt 0:00:06]} 28. Kxf5 {[%emt 0:00:04]} Rf8+ {[%emt 0:00:32]} 29. Kxg5 {[%emt 0:00:29]} Rf2 {[%emt 0:00:14]} 30. Rxe4+ {[%emt 0:00:04]} Kd6 {[%emt 0:00:12]} 31. Rb4 {[%emt 0:00:12]} b6 {[%emt 0:00:30]} 32. a4 {[%emt 0:00:33]} Kc5 {[%emt 0:00:31]} 33. b3 {[%emt 0:01:18]} a6 {[%emt 0:05:03]} 34. Rc4+ {[%emt 0:00:44]} Kd5 {[%emt 0:00:04]} 35. Rb4 {[%emt 0:00:08]} Kc5 {[%emt 0:00:14]} 36. Rc4+ {[%emt 0:00:04]} Kd5 {[%emt 0:00:14]} 37. Rb4 {[%emt 0:00:05]} Kc5 {[%emt 0:00:27]} 38. Rc4+ {[%emt 0:00:05]} Kd5 {[%emt 0:00:06]} 39. Rb4 {[%emt 0:00:03]} Kc5 {[%emt 0:00:06]} 40. Rc4+ {[%emt 0:00:00]} Kd5 {[%emt 0:00:00]} 1/2-1/2

[Event "Polugaevsky Memorial 2018"]
[Site "Samara"]
[Date "2018.07.10"]
[Round "1"]
[White "Kovaleva, Ekaterina"]
[Black "Gaifullin, Artur"]
[Result "0-1"]
[ECO "B14"]
[WhiteElo "1947"]
[BlackElo "2448"]
[Annotator "NA"]
[PlyCount "105"]
[EventDate "2018.07.10"]
[EventType "swiss"]
[EventCountry "RUS"]
[SourceTitle "playchess.com"]
[Source "ChessBase"]
[SourceQuality "1"]
[TimeControl "40/5400+30:1800+30"]

1. e4 {[%emt 0:00:00]} c6 {[%emt 0:00:00]} 2. d4 {[%emt 0:00:00]} d5 {[%emt 0:00:00]} 3. exd5 {[%emt 0:00:00]} cxd5 {[%emt 0:00:00]} 4. c4 {[%emt 0:00:00]} Nf6 {[%emt 0:00:00]} 5. Nc3 {[%emt 0:00:07]} g6 {[%emt 0:00:00]} 6. c5 {[%emt 0:01:47]} Bg7 {[%emt 0:00:15]} 7. Nf3 {[%emt 0:00:21]} O-O {[%emt 0:00:08]} 8. Be2 {[%emt 0:05:23]} Nc6 {[%emt 0:00:49]} 9. Bf4 {[%emt 0:01:39] LiveBook: 5 Games} Ne4 {[%emt 0:01:50]} 10. O-O {[%emt 0:14:09]} Bg4 {[%emt 0:03:06]} 11. Ng5 {[%emt 0:16:00] D94: Grünfeld: 4 Nf3 Bg7 5 e3} (11. Rc1 Rc8 12. h3 Bxf3 13. Bxf3 Nxd4 14. Nxe4 Nxf3+ 15. Qxf3 dxe4 16. Qxe4 Qd4 17. Qxd4 Bxd4 18. b4 e5 {½-½ (31) Kashlinskaya,A (2444)-Papp,P (2285) Moscow 2015}) 11... Bxe2 {[%emt 0:03:23]} 12. Nxe2 {[%emt 0:00:16]} e5 {[%emt 0:00:56]} 13. Nxe4 {[%emt 0:01:30]} exf4 $146 {[%emt 0:01:07]} ({Predecessor:} 13... dxe4 14. dxe5 Nxe5 15. Qc2 Qd3 16. Rac1 Rfd8 17. Nc3 Qxc2 18. Rxc2 f5 19. Nb5 a6 20. Nd6 Nd3 21. Bd2 Nxc5 22. Nc4 Nd7 23. Nd6 b6 24. Rfc1 Ne5 25. Nb7 Rd7 {0-1 (25) Wanke,R-Voigt,M (2235) Hamburg 1990}) 14. N4c3 {[%emt 0:05:03] [#]} (14. Nd6 $15) 14... f3 $1 {[%emt 0:02:07]} 15. gxf3 {[%emt 0:02:26]} Qh4 {[%emt 0:00:46]} 16. f4 {[%emt 0:02:39]} Qg4+ {[%emt 0:02:19]} 17. Kh1 {[%emt 0:08:12]} Qf3+ {[%emt 0:00:25]} 18. Kg1 {[%emt 0:00:03]} Rad8 {[%emt 0:00:12]} 19. Qd2 {[%emt 0:06:42]} Rfe8 {[%emt 0:00:18]} 20. Rad1 {[%emt 0:01:17]} Qg4+ {[%emt 0:04:01]} 21. Kh1 {[%emt 0:00:18]} h5 {[%emt 0:04:34]} ({Black should play} 21... b6 $11 22. cxb6 axb6) 22. Qd3 {[%emt 0:06:09]} (22. Rg1 $5 {[%cal Rg1g4]} Qf3+ 23. Rg2 $11) 22... Nb4 {[%emt 0:02:59]} 23. Qg3 {[%emt 0:02:51]} Nxa2 {[%emt 0:01:05]} 24. Qxg4 {[%emt 0:08:11]} hxg4 {[%emt 0:00:02]} 25. f3 {[%emt 0:01:19]} gxf3 {[%emt 0:04:45]} 26. Rxf3 $11 {[%emt 0:00:05]} f5 {[%emt 0:00:11]} 27. Rd2 {[%emt 0:14:12]} Nb4 {[%emt 0:04:01]} 28. Kg2 {[%emt 0:01:29]} a6 {[%emt 0:02:12]} 29. Kf2 {[%emt 0:01:41]} Nc6 {[%emt 0:00:06]} 30. Re3 {[%emt 0:00:35]} Rxe3 {[%emt 0:00:40]} 31. Kxe3 {[%emt 0:00:02]} Kf7 {[%emt 0:00:06]} 32. Kf3 {[%emt 0:01:01]} Bf6 {[%emt 0:01:35]} 33. Nd1 {[%emt 0:00:27]} Rh8 {[%emt 0:01:56]} 34. Kg2 {[%emt 0:00:30]} Re8 {[%emt 0:00:09]} 35. Kf3 {[%emt 0:00:31]} Rh8 {[%emt 0:15:39]} 36. Kg2 {[%emt 0:00:16]} Ke6 {[%emt 0:00:03]} 37. Ndc3 {[%emt 0:00:45]} Nb4 {[%emt 0:02:32]} 38. Ng1 {[%emt 0:00:32]} Rh4 {[%emt 0:04:28]} 39. Nce2 {[%emt 0:00:08]} g5 {[%emt 0:00:26]} 40. fxg5 {[%emt 0:00:00]} Bxg5 {[%emt 0:00:00]} 41. Rd1 {[%emt 0:01:23]} Nc2 {[%emt 0:02:40]} 42. Kh1 Re4 {[%emt 0:08:41]} 43. Nf3 {[%emt 0:11:19]} Rxe2 {[%emt 0:02:48]} 44. Nxg5+ {[%emt 0:00:03]} Kf6 {[%emt 0:00:07]} 45. Nf3 {[%emt 0:03:17]} f4 {[%emt 0:00:32]} 46. Kg1 {[%emt 0:13:04]} Kf5 {[%emt 0:00:28]} 47. Kf1 {[%emt 0:00:54]} Re3 {[%emt 0:00:11]} 48. Kf2 {[%emt 0:00:34]} Rb3 {[%emt 0:00:44]} 49. Rd2 {[%emt 0:00:42]} Rxb2 {[%emt 0:00:06]} 50. Re2 {[%emt 0:04:23]} Ne3 {[%emt 0:00:53]} 51. Nd2 {[%emt 0:00:40]} a5 {[%emt 0:00:31]} 52. Kf3 {[%emt 0:00:31]} a4 {[%emt 0:00:13]} 53. Nb1 {[%emt 0:00:32] Ke5} 0-1

[Event "Polugaevsky Memorial 2018"]
[Site "Samara"]
[Date "2018.07.12"]
[Round "3"]
[White "Matinian, Nikita"]
[Black "Kotlyar, Kirill"]
[Result "1-0"]
[ECO "B12"]
[WhiteElo "2510"]
[BlackElo "2407"]
[Annotator "RC"]
[PlyCount "41"]
[EventDate "2018.07.10"]
[EventType "swiss"]
[EventCountry "RUS"]
[SourceTitle "playchess.com"]
[Source "ChessBase"]
[SourceQuality "1"]
[TimeControl "40/5400+30:1800+30"]

1. e4 {[%emt 0:00:00]} c6 {[%emt 0:00:00]} 2. d4 {[%emt 0:00:00]} d5 {[%emt 0:00:11]} 3. e5 {[%emt 0:00:00]} Bf5 {[%emt 0:00:32]} 4. Nd2 {[%emt 0:00:02]} h6 {[%emt 0:01:38]} 5. Nb3 {[%emt 0:00:18]} e6 {[%emt 0:00:58]} 6. Nf3 {[%emt 0:00:04]} Nd7 {[%emt 0:01:15]} 7. Be2 {[%emt 0:00:49]} Ne7 {[%emt 0:01:48]} 8. O-O {[%emt 0:00:09]} g5 {[%emt 0:03:44]} 9. Ne1 {[%emt 0:03:20]} Qc7 {[%emt 0:03:31]} 10. Nd3 {[%emt 0:01:01]} Bg7 {[%emt 0:04:32]} 11. a4 {[%emt 0:04:50]} a6 {[%emt 0:24:23]} 12. f4 {[%emt 0:03:12]} Bxd3 {[%emt 0:12:57]} 13. Qxd3 {[%emt 0:02:11]} c5 {[%emt 0:01:46]} 14. Bh5 {[%emt 0:07:07]} cxd4 {[%emt 0:08:05]} 15. Nxd4 {[%emt 0:01:45]} gxf4 {[%emt 0:05:32]} 16. Bxf4 {[%emt 0:00:38]} Rf8 {[%emt 0:00:39]} 17. Qh7 {[%emt 0:02:15]} Bh8 {[%emt 0:05:22]} 18. Bxh6 {[%emt 0:01:57]} O-O-O {[%emt 0:00:25]} 19. Bxf8 {[%emt 0:00:23]} Rxf8 {[%emt 0:00:04]} 20. Rxf7 {[%emt 0:00:35]} Rxf7 {[%emt 0:00:11]} 21. Qxf7 {[%emt 0:01:05]} 1-0